[Event "MPL 41st IND-ch Teams 2022"]
[Site "Jalgaon"]
[Date "2022.04.12"]
[Round "7.6"]
[White "Jithin K"]
[Black "Das, Sayantan"]
[Result "0-1"]
[ECO "E62"]
[WhiteElo "1597"]
[BlackElo "2459"]
[Annotator "TA"]
[PlyCount "50"]
[EventDate "2022.04.08"]
[EventType "team-tourn"]
[EventCountry "IND"]
[SourceTitle "playchess.com"]
[Source "ChessBase"]
[SourceQuality "1"]
[TimeControl "5400+30"]

{[%evp 21,50,0,0,-19,2,-150,-133,-138,-147,-172,-154,-176,-116,-112,-103,-205,-201,-275,0,-139,0,-243,-112,-123,-128,-110,-126,-408,-414,-1086,-906]} 1. d4 Nf6 2. c4 g6 3. Nc3 Bg7 4. g3 O-O 5. Bg2 d6 6. Nf3 Nc6 7. O-O Bg4 8. h3 Bxf3 9. Bxf3 Nd7 10. e3 e5 11. Bxc6 bxc6 {[%cal Bb7c6,Bc6c5,Bc5d4][%mdl 32]} 12. b3 {[#] E62: King's Indian: Fianchetto: 6...c6 and Panno Variation (6...Nc6) without ...a6.} c5 $146 ({Predecessor:} 12... Qf6 13. dxe5 Nxe5 14. Bb2 Rab8 15. Rb1 Qf3 16. Na4 Qf5 17. Bxe5 Bxe5 18. Kh2 h5 19. h4 Rfe8 {0-1 (57) Vul,A (2253)-Nigmatov,O (2478) Tashkent 2019}) 13. Bb2 $2 (13. dxc5 $11 e4 14. Qc2) 13... exd4 14. exd4 {Black is clearly better.} cxd4 ({And not} 14... Bxd4 15. Qd2 $17) 15. Nb5 c5 16. Nxd6 Qb6 ({Black should play} 16... Nf6 $19 17. Nb5 a6) 17. Ne4 $17 Rae8 18. Re1 (18. Nd2 $17 {might work better.}) 18... Qc6 $1 $19 19. Ng5 Qb6 ({Better is} 19... Ne5 $1 $19 {Threatens to win with ...h6.} 20. Bc1 h6) 20. Ne4 $1 $17 Qc6 (20... f5 $17 21. Nd2 Rxe1+ 22. Qxe1 Ne5) 21. Ng5 $19 {[#]} Rxe1+ (21... Ne5 $1 $19 {and Black stays clearly on top. Hoping for ...h6.} 22. Bc1 h6) 22. Qxe1 $17 h6 $36 {[%mdl 2048] Black is on the roll.} 23. Qe4 {[#]} Qc8 24. Nxf7 $2 {[%mdl 8192]} Rxf7 $19 25. Qxg6 (25. Kg2 $142) 25... Ne5 {[%csl LRg6,LRh3] Weighted Error Value: White=0.77/Black=0.51} 0-1

[Event "MPL 41st IND-ch Teams 2022"]
[Site "Jalgaon"]
[Date "2022.04.12"]
[Round "7.7"]
[White "Laxman, R.R."]
[Black "Jashanpreet Singh"]
[Result "1-0"]
[ECO "A48"]
[WhiteElo "2429"]
[BlackElo "1709"]
[Annotator "TA"]
[PlyCount "67"]
[EventDate "2022.04.08"]
[EventType "team-tourn"]
[EventCountry "IND"]
[SourceTitle "playchess.com"]
[Source "ChessBase"]
[SourceQuality "1"]
[TimeControl "5400+30"]

{[%evp 14,67,55,46,84,90,97,91,94,66,81,69,70,64,66,66,66,60,136,55,58,54,66,37,37,45,39,38,47,39,70,70,78,52,484,476,712,704,1015,546,534,321,319,307,340,341,334,210,242,200,701,710,710,695,1114,1075]} 1. d4 Nf6 2. Nf3 g6 3. c4 Bg7 4. Nc3 O-O 5. Bg5 d6 6. e3 {[%cal Be2e3,Be3e4][%mdl 32]} c5 7. Be2 {7.d5 is more advanced technology.} Nc6 8. d5 Ne5 {E61: King's Indian: Early deviations for White, including Smyslov System.} 9. Nxe5 dxe5 10. e4 Ne8 {White is better.} 11. O-O f5 {[#]} 12. f3 $146 {&Bianco is more active.} ({Predecessor:} 12. exf5 gxf5 13. f3 Nd6 14. Bd3 Kh8 15. Kh1 Bf6 16. Bxf6+ exf6 17. a4 Bd7 18. Nb5 {1-0 (42) Coyne,D (2317)-Harvey,D (2333) ICCF email 2017}) 12... Nd6 13. Bd3 f4 14. Bh4 b6 15. a3 g5 (15... Bd7 $14) 16. Bf2 ({Better is} 16. Bxg5 $16 Bd7 17. Qe1) 16... Rf6 $14 17. b4 Rg6 18. Kh1 g4 19. fxg4 Bxg4 20. Be2 Qd7 21. Bxg4 Rxg4 22. bxc5 bxc5 23. Bxc5 Nxc4 $2 {[%mdl 8192] A mistake that costs the game.} (23... Rc8 $14 24. Bxd6 exd6) 24. d6 $1 $18 {[%cal Bd5d6,Bd6e7][%mdl 32] aiming for Qd5+.} Qe6 (24... Rc8 $142 25. Qd5+ Kh8 26. dxe7 (26. Qxc4 exd6 27. Rad1 Rg6 $11) 26... Qe8 27. Qxc4 Qxe7 28. Bxe7 Rxc4) 25. dxe7 {Black must now prevent Qd8+.} Rc8 {[#]} 26. Nd5 $1 Kf7 27. Bf2 Nd6 28. Qf3 (28. Bxa7 $6 Rg6 29. Qe2 Bf6 $18) 28... Bf6 29. Rac1 (29. Bxa7 Rg6 30. Rad1 (30. Qh5 Bxe7 31. Rab1 Qg4 $16) 30... Bxe7 $18) 29... Bxe7 30. Bc5 (30. Bxa7 Rg6 31. Rxc8 Qxc8 $18) 30... Rgg8 31. g3 {Really sharp!} (31. Bxa7 $6 Qg4) (31. Qh5+ $6 Qg6 32. Qe2 Rge8) 31... Qg4 {[#]} (31... Rxc5 32. Rxc5 Nxe4 33. Qh5+ (33. Qxe4 Bxc5 34. gxf4 Qh3 $14) (33. gxf4 $2 Ng3+ 34. Qxg3 Rxg3 $19) 33... Rg6) 32. Qxg4 {White is clearly winning.} Rxg4 33. Nxe7 Nxe4 34. Nxc8 {Weighted Error Value: White=0.39/Black=0.53} 1-0

[Event "MPL 41st IND-ch Teams 2022"]
[Site "Jalgaon"]
[Date "2022.04.12"]
[Round "7.8"]
[White "Raghvendra Kumar Mishra"]
[Black "Thejkumar, M. S."]
[Result "0-1"]
[ECO "B13"]
[WhiteElo "1605"]
[BlackElo "2433"]
[Annotator "TA"]
[PlyCount "46"]
[EventDate "2022.04.08"]
[EventType "team-tourn"]
[EventCountry "IND"]
[SourceTitle "playchess.com"]
[Source "ChessBase"]
[SourceQuality "1"]
[TimeControl "5400+30"]

{[%evp 11,46,-6,11,0,12,0,0,0,0,0,0,0,0,0,0,0,0,-14,-18,-39,-45,-35,-53,-49,-44,-187,-182,-960,-933,-948,-932,-879,-855,-29990,-29991,-29998,-29999]} 1. e4 c6 2. d4 d5 3. exd5 cxd5 4. Bd3 Nf6 5. Ne2 Nc6 6. c3 g6 7. h3 {B13: Caro-Kann: Exchange Variation and Panov-Botvinnik Attack.} Bg7 8. Nd2 e5 9. dxe5 {The position is equal.} Nxe5 10. Bc2 O-O 11. O-O b6 {[#]} 12. Nd4 $146 ({Predecessor:} 12. Nb3 Ba6 13. Re1 Re8 14. Bg5 h6 15. Bh4 g5 16. Bg3 Ne4 17. Bxe5 Rxe5 18. Ned4 {½-½ (33) Manu,D (2040)-Lorentz,N (2220) Eforie Nord 1999}) 12... Re8 13. Re1 {[%cal Oe1e5]} Bb7 14. Nf1 Ne4 15. Ng3 {[%cal Rg3e4]} Qh4 16. Nxe4 dxe4 {[%cal Bd5e4,Be4f3][%mdl 32]} 17. Be3 Rad8 {[%cal Oe5f3] White must now prevent ...Nf3+!} 18. Qe2 {[#] Prevents Nf3+. White does not recover from this.} ({White should play} 18. Bb3 $1 $15) 18... Nf3+ $1 $19 19. gxf3 $2 (19. Kh1) 19... exf3 20. Qf1 Bxd4 {[%mdl 64] Remove Defender} 21. Bxd4 {[#]} Ba6 $1 {[%mdl 512]} 22. Bd3 (22. c4 Bc8) 22... Bxd3 23. Qxd3 Qg5+ {Weighted Error Value: White=0.83/Black=0.01 (flawless)} 0-1

[Event "MPL 41st IND-ch Teams 2022"]
[Site "Jalgaon"]
[Date "2022.04.12"]
[Round "8.1"]
[White "Sharma, Dinesh K."]
[Black "Vignesh B"]
[Result "*"]
[ECO "B95"]
[WhiteElo "2283"]
[BlackElo "2249"]
[Annotator "TA"]
[PlyCount "37"]
[EventDate "2022.04.08"]
[EventType "team-tourn"]
[EventCountry "IND"]
[SourceTitle "playchess.com"]
[Source "ChessBase"]
[SourceQuality "1"]
[TimeControl "5400+30"]

{[%evp 11,12,27,27]} 1. e4 {[%emt 0:00:03]} c5 {[%emt 0:00:08]} 2. Nf3 {[%emt 0:00:11]} d6 {[%emt 0:00:04]} 3. d4 {[%emt 0:00:19]} cxd4 {[%emt 0:00:05]} 4. Nxd4 {[%emt 0:00:06]} Nf6 {[%emt 0:00:04]} 5. Nc3 {[%emt 0:00:04]} a6 {[%emt 0:00:03]} 6. Bg5 {[%emt 0:00:39]} e6 {[%emt 0:00:10] [#]} {Predecessor:} 7. Qf3 $146 {B95: Sicilian Najdorf: 6 Bg5 e6, unusual White 7th moves.} Be7 8. O-O-O Qa5 9. h4 Bd7 10. Bc4 Nc6 11. Bb3 h6 12. Be3 Ne5 13. Qe2 Rc8 14. Kb1 b5 15. f4 Neg4 16. e5 dxe5 17. fxe5 Nxe5 18. Bxh6 Rxh6 19. Qxe5 {0-1 (44) Predke,A (2682)-Vachier Lagrave,M (2761) Belgrade 2022} *

[Event "MPL 41st IND-ch Teams 2022"]
[Site "Jalgaon"]
[Date "2022.04.12"]
[Round "8.1"]
[White "Sharma, Dinesh K."]
[Black "Vignesh N R"]
[Result "0-1"]
[ECO "B96"]
[WhiteElo "2283"]
[BlackElo "2444"]
[Annotator "TA"]
[PlyCount "64"]
[EventDate "2022.04.08"]
[EventType "team-tourn"]
[EventCountry "IND"]
[SourceTitle "playchess.com"]
[Source "ChessBase"]
[SourceQuality "1"]
[TimeControl "5400+30"]

{[%evp 20,64,0,-66,-64,-72,12,24,16,34,33,-4,37,0,0,0,0,-87,-88,-90,-69,-129,-132,-131,-119,-195,-193,-239,-209,-246,-241,-246,-233,-277,-264,-347,-353,-412,-398,-409,-405,-452,-439,-708,-610,-991,-980]} 1. e4 {[%emt 0:00:03]} c5 {[%emt 0:00:08]} 2. Nf3 {[%emt 0:00:11]} d6 {[%emt 0:00:04]} 3. d4 {[%emt 0:00:19]} cxd4 {[%emt 0:00:05]} 4. Nxd4 {[%emt 0:00:06]} Nf6 {[%emt 0:00:04]} 5. Nc3 {[%emt 0:00:04]} a6 {[%emt 0:00:03]} 6. Bg5 {[%emt 0:00:39]} e6 {[%emt 0:00:10]} 7. f4 {[%emt 0:00:28]} h6 {[%emt 0:01:33]} 8. Bh4 {[%emt 0:00:34]} Qb6 {[%emt 0:00:05]} 9. Qd2 {[%emt 0:00:22]} Qxb2 {[%emt 0:00:46]} 10. Rb1 {[%emt 0:00:05]} Qa3 {[%emt 0:00:03]} 11. e5 {[%emt 0:01:15]} (11. f5 $11) 11... dxe5 $15 {[%emt 0:00:47] B97: Sicilian Najdorf: Poisoned Pawn.} 12. fxe5 {[%emt 0:00:05]} Nd5 {[%emt 0:00:12] 12...Nfd7 is a critical line.} ({Black should play} 12... Nfd7 $1 $17 {aiming for ...Bb4.} 13. Be2 Be7 14. Bxe7 Qxe7) 13. Nxd5 $11 {[%emt 0:06:05]} exd5 {[%emt 0:00:02] White has an edge.} 14. e6 {[%emt 0:02:57]} Bxe6 {[%emt 0:00:06]} (14... fxe6 15. Bd3 g5 16. Rb3 $1 $18) 15. Rxb7 {[%emt 0:09:52] Hoping for Be2.} Nd7 {[%emt 0:02:22] [#]} 16. Nxe6 $146 {[%emt 0:06:26]} (16. Bb5 $5 {[%cal Rd4e6]} Bc5 17. Nxe6 axb5 18. Nxc5 (18. Nxg7+ Kf8 $11) 18... Qxc5 19. Qe2+ Kf8 20. Rxd7 Qb4+ 21. Kd1 Qd4+ 22. Kc1 Qa1+ 23. Kd2 Qd4+ 24. Qd3 Qxh4 25. Rf1 $14 (25. Qxd5 Qg5+ 26. Kc3 Qf6+ 27. Kb3 Rc8 $14)) ({Predecessor:} 16. Bb5 axb5 17. Nxb5 Be7 18. Nxa3 Bxh4+ 19. g3 Bg5 20. Qb4 Be7 21. Qb5 Rxa3 22. O-O Bc5+ 23. Kh1 O-O 24. Rxd7 Bxd7 25. Qxc5 Rxa2 26. Qxd5 Be6 27. Qd3 Ra4 {½-½ (27) Hovhannisyan,R (2610)-Andriasian,Z (2610) Jermuk 2013}) 16... fxe6 {[%emt 0:00:04]} 17. Bd3 {[%emt 0:01:18][%cal Rd3g6]} Be7 {[%emt 0:01:03]} 18. Bxe7 {[%emt 0:06:07]} (18. Bg6+ $11 {keeps the balance.} Kd8 19. Bxe7+ Kxe7 20. Qd4) 18... Kxe7 $17 {[%emt 0:01:04]} 19. O-O {[%emt 0:01:42] Qe3 is the strong threat.} Rab8 {[%emt 0:08:19] Chess con chili.} 20. Ra7 {[%emt 0:06:16]} ({White should try} 20. Rb3 $15 Qd6 21. Qe2 (21. Qf2 Rbf8 $17)) 20... Qc5+ {[%emt 0:02:11]} 21. Qf2 {[%emt 0:00:05]} Qxf2+ {[%emt 0:00:09]} 22. Rxf2 {[%emt 0:00:37] [#]} (22. Kxf2 $17 Ra8 23. Rb7) 22... Ra8 $1 $19 {[%emt 0:00:26]} 23. Rb7 {[%emt 0:04:24]} (23. Rxa8 {keeps fighting.} Rxa8 24. Rf4) 23... Rhb8 {[%emt 0:00:19]} 24. Rxb8 {[%emt 0:00:38]} Rxb8 {[%emt 0:00:15]} 25. Bxa6 {[%emt 0:00:59][%mdl 4096] Endgame KRB-KRN} Ra8 {[%emt 0:00:37][%cal Bb8a8,Ba8a2,Ba2a3][%mdl 32]} 26. Bb5 {[%emt 0:02:53]} Rxa2 {[%emt 0:00:10]} 27. c3 {[%emt 0:00:35]} Ra3 {[%emt 0:02:30]} 28. Rc2 {[%emt 0:00:38]} Nc5 {[%emt 0:00:07]} 29. Bf1 {[%emt 0:03:13]} Ne4 {[%emt 0:00:19]} 30. c4 {[%emt 0:00:01]} d4 {[%emt 0:00:01][%cal Bd5d4,Bd4d3,Bd3d2][%mdl 32] Black is clearly winning.} 31. c5 {[%emt 0:00:01]} (31. Re2 $142 Nc5 32. g3) 31... d3 {[%emt 0:01:55]} 32. Rc1 {[%emt 0:00:50]} d2 {[%emt 0:00:06] Weighted Error Value: White=0.66/Black=0.18 (very precise)} 0-1

[Event "MPL 41st IND-ch Teams 2022"]
[Site "Jalgaon"]
[Date "2022.04.12"]
[Round "8.2"]
[White "Deepan Chakkravarthy J."]
[Black "Kiran, Manisha Mohanty"]
[Result "1-0"]
[ECO "B56"]
[WhiteElo "2520"]
[BlackElo "2168"]
[Annotator "TA"]
[PlyCount "109"]
[EventDate "2022.04.08"]
[EventType "team-tourn"]
[EventCountry "IND"]
[SourceTitle "playchess.com"]
[Source "ChessBase"]
[SourceQuality "1"]
[TimeControl "5400+30"]

{[%evp 18,109,58,25,33,30,37,32,27,25,27,31,45,65,68,64,83,61,60,45,58,0,0,8,73,11,0,0,22,43,45,31,57,0,0,0,0,0,0,-29,-1,-33,-16,-18,-16,-42,-33,-43,0,0,0,0,24,21,11,18,87,95,108,71,81,28,28,0,132,132,162,105,124,121,127,49,31,0,118,0,20,0,0,0,0,0,0,0,0,0,29966,29966,12841,5583,29988,29989,29989,29990]} 1. e4 c5 2. Nf3 d6 3. d4 cxd4 4. Nxd4 Nf6 5. Nc3 Nc6 6. f3 e5 7. Nb3 Be7 8. Be3 a5 {8...Be6 gains popularity.} 9. Bb5 O-O 10. Qd2 Na7 {B56: Classical Sicilian: Unusual Lines.} 11. Bxa7 Rxa7 12. a4 Be6 {White is slightly better.} 13. O-O-O Ra8 14. Kb1 {[#]} Rc8 $146 ({Predecessor:} 14... Ne8 15. Nd5 Bg5 16. Qd3 Nc7 17. Nxc7 Qxc7 18. Qxd6 Rfc8 19. Qxc7 Rxc7 20. Rd3 Kf8 {1-0 (54) Caruana,F (2792)-Dubov,D (2720) Chess.com INT 2022}) 15. g4 b6 16. h4 Qc7 17. Rhg1 {[%cal Bh1g1,Bg1g4,Bg4c4,Bc4c6][%mdl 32]} Rfd8 18. g5 Nh5 19. Nd5 {Inhibits Nf4.} (19. Nc1 $14) 19... Bxd5 $11 20. exd5 f5 (20... g6 $11 {remains equal.}) 21. gxf6 (21. Bc6 $16) 21... Bxf6 22. Rg4 Rf8 23. Rc4 Qd8 24. Rc6 Nf4 25. Nd4 Bxh4 26. Ne6 Nxe6 27. dxe6 Be7 (27... Rxf3 $2 28. Qd5 Kh8 29. Qxf3 $18) 28. Qd3 Rf4 29. c3 {Inhibits Rd4.} Rxc6 30. Bxc6 g6 31. Qb5 Kg7 32. Be4 Kf6 33. Rh1 h5 34. Bc2 Kg7 35. Qd3 e4 $1 36. fxe4 Rg4 {Against Rg1} (36... Qc8 $11) 37. Rf1 $16 {Hoping for Rf7+.} Bf6 38. Qf3 $36 {[%cal Oe4e5][%mdl 2048] White has strong initiative.} Qe7 {[#]} 39. Bb3 ({White should try} 39. e5 $1 $16 {[%cal Re5f6]} dxe5 40. Qc6) 39... Rg5 $1 $11 40. Qf2 Re5 (40... b5 $11) 41. Qxb6 $16 {&Bianco is more active.} h4 42. Qe3 ({White should play} 42. Bd5 $18) 42... Rxe6 43. Bxe6 Qxe6 {[%mdl 4096] Endgame KQR-KQB} 44. Qa7+ (44. Kc2 $16) 44... Kh6 $14 45. Qe3+ ({Weaker is} 45. Qxa5 Qxe4+ 46. Ka1 Be5 $18) (45. Re1 $14 Be5 46. Qxa5) 45... Kg7 $1 $16 46. Qa7+ (46. Kc2 $16) 46... Kh6 $11 47. Qxa5 Qxe4+ 48. Ka1 Be5 49. Qb4 Qxb4 50. cxb4 {KR-KB} g5 $1 {Strongly threatening ...g4.} 51. a5 {[%cal Ba4a5,Ba5a6][%mdl 32]} g4 $2 {[%mdl 8192] [#]} (51... h3 $11 52. Rd1 Bf4) 52. a6 Bd4 53. Rf4 $1 {[%csl LRd4,LRg4]} Bf2 54. Rxf2 g3 55. Rg2 {Weighted Error Value: White=0.21 (precise) /Black=0.44} 1-0

[Event "MPL 41st IND-ch Teams 2022"]
[Site "Jalgaon"]
[Date "2022.04.12"]
[Round "8.3"]
[White "Sriram, Jha"]
[Black "Swapnil, S. Dhopade"]
[Result "0-1"]
[ECO "A37"]
[WhiteElo "2379"]
[BlackElo "2495"]
[Annotator "TA"]
[PlyCount "64"]
[EventDate "2022.04.08"]
[EventType "team-tourn"]
[EventCountry "IND"]
[SourceTitle "playchess.com"]
[Source "ChessBase"]
[SourceQuality "1"]
[TimeControl "5400+30"]

{[%evp 15,64,-9,0,-16,-9,-9,-15,-13,-27,-75,-82,-75,-79,-115,-119,-105,-112,-150,-154,-143,-144,-160,-147,-154,-148,-147,-150,-152,-166,-152,-150,-183,-150,-181,-185,-176,-156,-195,-171,-175,-171,-197,-202,-188,-122,-120,-111,-725,-725,-845,-808]} 1. Nf3 {[%emt 0:00:20]} c5 {[%emt 0:00:10]} 2. c4 {[%emt 0:02:05]} Nc6 {[%emt 0:00:09]} 3. Nc3 {[%emt 0:00:56]} g6 {[%emt 0:00:14]} 4. g3 {[%emt 0:03:57]} Bg7 {[%emt 0:00:16]} 5. Bg2 {[%emt 0:00:02]} d6 {[%emt 0:00:38]} 6. d3 {[%emt 0:02:04]} Rb8 {[%emt 0:01:03]} 7. O-O {[%emt 0:01:47]} a6 {[%emt 0:00:13]} 8. a4 {[%emt 0:11:22]} Nf6 {[%emt 0:00:15]} 9. Bd2 {[%emt 0:02:32] A37: Symmetrical English vs ...g6: 4 Bg2 Bg7 5 Nf3.} O-O {[%emt 0:00:21]} 10. Qc1 Bg4 {[%emt 0:03:29]} 11. Bh6 {[%emt 0:07:18] The position is equal.} Bxf3 {[%emt 0:18:05] [#]} 12. exf3 $146 {[%emt 0:02:39]} (12. Bxf3 $11 {was preferrable.} Nd4 13. Rb1) ({Predecessor:} 12. Bxf3 Nd4 13. Bxg7 Kxg7 14. Qd1 Nxf3+ 15. exf3 d5 16. Qe2 e6 17. Qe5 Kg8 18. Rfe1 {1-0 (44) Fell,L-Hamilton,D Australia 1963}) 12... Nd4 $17 {[%emt 0:00:56]} 13. Bxg7 {[%emt 0:00:15]} Kxg7 {[%emt 0:00:05]} 14. Rb1 {[%emt 0:00:01] [#]} b5 $1 {[%emt 0:04:45]} 15. axb5 {[%emt 0:00:07]} axb5 {[%emt 0:00:04] White must now prevent ...b4.} 16. cxb5 {[%emt 0:02:44]} Rxb5 {[%emt 0:01:08]} ({Stronger than} 16... Nxb5 17. Ne2 $15) 17. Re1 {[%emt 0:00:04]} Rb3 {[%emt 0:06:04]} 18. Ra1 {[%emt 0:13:41]} Qd7 {[%emt 0:00:38]} 19. Ra2 {[%emt 0:02:42]} Rfb8 {[%emt 0:00:18] &Nero is much more active.} 20. f4 {[%emt 0:00:26]} e6 {[%emt 0:00:21]} 21. h3 {[%emt 0:02:35]} Qc7 {[%emt 0:01:20]} 22. Rd1 {[%emt 0:01:33]} Ng8 {[%emt 0:08:43][%cal Bf6g8,Bg8e7,Be7c8][%mdl 32]} 23. Qa1 {[%emt 0:02:45]} Ne7 {[%emt 0:00:45]} 24. Ra7 {[%emt 0:02:47]} Qd8 {[%emt 0:00:17]} 25. Qa4 {[%emt 0:02:28]} Nc8 {[%emt 0:04:25] Pair of Knights!} 26. Ra8 {[%emt 0:08:14]} Rxb2 {[%emt 0:01:28]} 27. Rxb8 {[%emt 0:00:05]} Rxb8 {[%emt 0:00:09]} 28. Ra1 {[%emt 0:01:22]} Rb3 {[%emt 0:06:34]} 29. Ne4 {[%emt 0:00:37]} Rxd3 {[%emt 0:10:50]} (29... Ne7 $19 30. Qa2 Qd7) 30. Rb1 {[%emt 0:04:25]} Qc7 {[%emt 0:00:05] [#] Prevents Rb7. ...d5 is the strong threat.} 31. Qe8 $2 {[%emt 0:17:47][%mdl 8192]} (31. Bf1 $17 Nf3+ 32. Kg2) 31... d5 $19 {[%emt 0:04:00][%cal Bd6d5,Bd5e4][%mdl 32]} 32. Ra1 {[%emt 0:03:05]} dxe4 {[%emt 0:02:51] Weighted Error Value: White=0.46/Black=0.09 (flawless)} 0-1